fUSD/lending_fUSD_20240105
["ID","MTS","AMOUNT","RATE_DAILY","PERIOD"]
[310251574,1704424243209,-11385.113,0.00035028,2]
[310251576,1704424243218,-1102.382315,0.00035068,2]
[310251578,1704424243227,-942.43204136,0.00035072,7]
[310251580,1704424243236,-157.40105,0.00035098,2]
[310251583,1704424243245,-154.87,0.00035101,2]
[310251586,1704424243254,-150.0,0.00035142,2]
[310251589,1704424243264,-150.0,0.00035155,2]
[310251592,1704424243273,-3000.0,0.0003516,2]
[310251595,1704424243282,-157.40105,0.00035198,2]
[310251598,1704424243291,-201.0,0.00035208,9]
[310251600,1704424243303,-500.0,0.00035231,2]
[310251602,1704424243312,-500.0,0.00035232,2]
[310251604,1704424243322,-150.0,0.00035242,2]
[310251606,1704424243332,-150.0,0.00035278,2]
[310251608,1704424243342,-150.0,0.00035288,2]
[310251610,1704424243352,-157.40105,0.00035298,2]
[310251612,1704424243361,-2524.72187463,0.000353,7]
[310251614,1704424243371,-163.01,0.00035318,2]
[310251616,1704424243382,-150.0,0.00035337,2]
[310251618,1704424243392,-350.23223636,0.00035342,4]
[310251620,1704424243403,-1543.335241,0.00035342,2]
[310251622,1704424243413,-200.0,0.00035342,2]
[310251624,1704424243423,-3408.18494152,0.00035342,3]
[310251627,1704424243434,-347.89262648,0.00035342,4]
[310251629,1704424243445,-154.87,0.00035365,2]
[310251631,1704424243455,-157.40105,0.00035398,2]
[310251633,1704424243465,-150.0,0.00035431,2]
[310251635,1704424243475,-150.0,0.00035454,2]
[310251637,1704424243484,-150.0,0.00035479,2]
[310251639,1704424243494,-150.0,0.00035484,2]
[310251641,1704424243503,-150.0,0.00035494,2]
[310251643,1704424243513,-157.40105,0.00035498,2]
[310251645,1704424243522,-858.745796,0.000355,2]
[310251647,1704424243531,-194.761485,0.000355,4]
[310251649,1704424243541,-300.0,0.000355,9]
[310251651,1704424243554,-1528.141427,0.000355,18]
[310251653,1704424243563,-1015.2250948,0.000355,2]
[310251655,1704424243573,-8802.4161375,0.00035512,2]
[310251657,1704424243583,-5034.3523683,0.00035512,2]
[310251659,1704424243592,-12420.5135593,0.00035512,2]
[310251661,1704424243602,-233107.5995459,0.00035512,2]
[310251663,1704424243612,-150.01,0.00035515,2]
[310251665,1704424243622,-3286.93466783,0.00035515,2]
[310251667,1704424243632,-3000.0,0.0003552,2]
[310251669,1704424243641,-7176.00260997,0.00035531,2]
[310251671,1704424243650,-1528.41958395,0.00035532,2]
[310251673,1704424243659,-2580.3195728,0.00035536,2]
[310251675,1704424243668,-167.0,0.00035584,2]
[310251677,1704424243678,-157.40105,0.00035598,2]
[310251679,1704424243687,-1000.0,0.000356,2]
[310251681,1704424243697,-177.89,0.00035606,10]
[310251683,1704424243706,-153.81315469,0.00035613,2]
[310251685,1704424243715,-155.35017057,0.00035614,4]
[310251687,1704424243724,-2739.46232473,0.00035614,2]
[310251689,1704424243733,-2500.0,0.00035614,2]
[310251691,1704424243742,-786.80666066,0.00035615,2]
[310251693,1704424243752,-150.0,0.00035615,2]
[310251695,1704424243761,-742.63981722,0.00035616,3]
[310251697,1704424243771,-623.78200327,0.00035616,3]
[310251699,1704424243780,-500.0,0.00035616,3]
[310251701,1704424243790,-377.46719922,0.00035616,3]
[310251704,1704424243801,-513.64175765,0.00035616,3]
[310251705,1704424243811,-267.42398357,0.00035616,3]
[310251708,1704424243821,-625.53367821,0.00035616,3]
[310251710,1704424243831,-501.82443011,0.00035616,3]
[310251712,1704424243841,-500.0,0.00035616,3]
[310251714,1704424243850,-501.53100154,0.00035616,3]
[310251716,1704424243859,-501.81171206,0.00035616,3]
[310251718,1704424243870,-503.28077971,0.00035616,3]
[310251720,1704424243879,-501.96188109,0.00035616,3]
[310251722,1704424243890,-413.19940919,0.00035616,3]
[310251724,1704424243899,-180.69,0.00035616,2]
[310251725,1704424243910,-504.39462403,0.00035616,3]
[310251728,1704424243924,-500.0,0.00035616,3]
[310251729,1704424243935,-500.0,0.00035616,3]
[310251731,1704424243945,-500.0,0.00035616,3]
[310251734,1704424243956,-515.81876957,0.00035616,3]
[310251736,1704424243966,-514.02681222,0.00035616,3]
[310251737,1704424243975,-522.92149706,0.00035616,3]
[310251740,1704424243984,-500.0,0.00035616,3]
[310251742,1704424243994,-380.31232522,0.00035616,3]
[310251744,1704424244003,-505.63204423,0.00035616,3]
[310251746,1704424244013,-222.40304665,0.00035616,3]
[310251747,1704424244022,-500.0,0.00035616,3]
[310251750,1704424244031,-517.92450871,0.00035616,3]
[310251752,1704424244040,-500.0,0.00035616,3]
[310251754,1704424244051,-408.19972223,0.00035616,3]
[310251756,1704424244060,-500.0,0.00035616,3]
[310251758,1704424244070,-503.46421148,0.00035616,3]
[310251760,1704424244079,-500.0,0.00035616,3]
[310251762,1704424244088,-503.11470788,0.00035616,3]
[310251764,1704424244098,-500.0,0.00035616,3]
[310251766,1704424244107,-529.45580406,0.00035616,3]
[310251767,1704424244116,-520.87863884,0.00035616,3]
[310251770,1704424244128,-505.74780728,0.00035616,3]
[310251772,1704424244138,-1000.0,0.00035616,3]
[310251774,1704424244147,-504.61951432,0.00035616,3]
[310251776,1704424244157,-503.23019612,0.00035616,3]
[310251778,1704424244166,-524.50389424,0.00035616,3]
[310251780,1704424244175,-417.44760563,0.00035616,3]
[310251782,1704424244184,-320.49673435,0.00035616,3]
[310251784,1704424244194,-500.0,0.00035616,3]
[310251786,1704424244203,-500.0,0.00035616,3]
[310251788,1704424244212,-500.0,0.00035616,3]
[310251790,1704424244221,-500.0,0.00035616,3]
[310251792,1704424244230,-584.72806319,0.00035616,3]
[310251794,1704424244240,-500.0,0.00035616,3]
[310251796,1704424244249,-564.24501178,0.00035616,3]
[310251798,1704424244258,-500.0,0.00035616,3]
[310251800,1704424244267,-475.28680231,0.00035616,3]
[310251801,1704424244276,-595.7240519,0.00035616,3]
[310251802,1704424244285,-500.0,0.00035616,3]
[310251803,1704424244294,-500.0,0.00035616,3]
[310251804,1704424244304,-500.0,0.00035616,3]
[310251805,1704424244313,-500.0,0.00035616,3]
[310251806,1704424244322,-500.0,0.00035616,3]
[310251807,1704424244332,-500.0,0.00035616,3]
[310251808,1704424244341,-500.0,0.00035616,3]
[310251809,1704424244350,-508.72111354,0.00035616,3]
[310251811,1704424244358,-500.0,0.00035616,3]
[310251813,1704424244368,-506.310768,0.00035616,3]
[310251814,1704424244378,-500.0,0.00035616,3]
[310251816,1704424244387,-502.44679144,0.00035616,3]
[310251819,1704424244397,-514.32536825,0.00035616,3]
[310251821,1704424244407,-502.87857579,0.00035616,3]
[310251823,1704424244417,-523.5408792,0.00035616,3]
[310251824,1704424244426,-504.56097448,0.00035616,3]
[310251827,1704424244435,-500.0,0.00035616,3]
[310251829,1704424244446,-506.95354632,0.00035616,3]
[310251831,1704424244455,-480.92786736,0.00035616,3]
[310251833,1704424244465,-508.73159792,0.00035616,3]
[310251835,1704424244474,-508.04877554,0.00035616,3]
[310251837,1704424244484,-500.0,0.00035616,3]
[310251839,1704424244494,-507.20808514,0.00035616,3]
[310251841,1704424244503,-517.00612306,0.00035616,3]
[310251843,1704424244513,-506.18453396,0.00035616,3]
[310251845,1704424244522,-500.0,0.00035616,3]
[310251847,1704424244532,-238.12529264,0.00035616,3]
[310251849,1704424244541,-500.0,0.00035616,3]
[310251851,1704424244554,-500.0,0.00035616,3]
[310251853,1704424244563,-500.0,0.00035616,3]
[310251855,1704424244573,-500.0,0.00035616,3]
[310251857,1704424244582,-191.20309436,0.00035616,3]
[310251859,1704424244592,-500.0,0.00035616,3]
[310251861,1704424244601,-500.0,0.00035616,3]
[310251863,1704424244611,-500.0,0.00035616,3]
[310251865,1704424244621,-500.0,0.00035616,3]
[310251867,1704424244631,-500.0,0.00035616,3]
[310251869,1704424244641,-500.0,0.00035616,3]
[310251871,1704424244650,-502.75625543,0.00035616,3]
[310251873,1704424244660,-500.0,0.00035616,3]
[310251875,1704424244669,-519.53920783,0.00035616,3]
[310251877,1704424244679,-500.0,0.00035616,3]
[310251879,1704424244688,-504.24225364,0.00035616,3]
[310251881,1704424244697,-501.85605925,0.00035616,3]
[310251883,1704424244707,-508.9487482,0.00035616,3]
[310251885,1704424244716,-500.0,0.00035616,3]
[310251887,1704424244725,-502.11103735,0.00035616,3]
[310251889,1704424244734,-500.0,0.00035616,3]
[310251891,1704424244743,-504.79816329,0.00035616,3]
[310251893,1704424244751,-504.99972845,0.00035616,3]
[310251895,1704424244760,-500.0,0.00035616,3]
[310251897,1704424244770,-500.0,0.00035616,2]
[310251899,1704424244778,-502.55747134,0.00035616,3]
[310251901,1704424244787,-509.44908276,0.00035616,3]
[310251902,1704424244796,-583.67388046,0.00035616,3]
[310251905,1704424244807,-559.32528079,0.00035616,3]
[310251907,1704424244816,-524.30603892,0.00035616,3]
[310251909,1704424244825,-500.0,0.00035616,3]
[310251911,1704424244834,-501.27099846,0.00035616,3]
[310251912,1704424244844,-507.50908849,0.00035616,3]
[310251915,1704424244855,-500.0,0.00035616,3]
[310251916,1704424244864,-500.0,0.00035616,3]
[310251918,1704424244874,-577.13855113,0.00035616,3]
[310251921,1704424244883,-502.46424636,0.00035616,3]
[310251922,1704424244892,-500.0,0.00035616,3]
[310251925,1704424244902,-506.02265335,0.00035616,3]
[310251927,1704424244914,-500.0,0.00035616,3]
[310251928,1704424244927,-503.4021264,0.00035616,3]
[310251931,1704424244937,-502.80660294,0.00035616,3]
[310251933,1704424244946,-500.0,0.00035616,3]
[310251935,1704424244956,-524.23445849,0.00035616,3]
[310251937,1704424244965,-500.0,0.00035616,3]
[310251938,1704424244974,-510.37399243,0.00035616,3]
[310251941,1704424244983,-500.0,0.00035616,3]
[310251943,1704424244993,-500.0,0.00035616,3]
[310251945,1704424245002,-500.0,0.00035616,3]
[310251947,1704424245012,-500.0,0.00035616,3]
[310251949,1704424245021,-500.0,0.00035616,3]
[310251951,1704424245030,-500.0,0.00035616,3]
[310251953,1704424245039,-500.0,0.00035616,3]
[310251955,1704424245049,-506.08877337,0.00035616,3]
[310251957,1704424245059,-199.41131718,0.00035616,3]
[310251959,1704424245068,-509.24409564,0.00035616,3]
[310251961,1704424245077,-514.75673637,0.00035616,3]
[310251963,1704424245086,-502.78150187,0.00035616,3]
[310251965,1704424245095,-500.0,0.00035616,3]
[310251967,1704424245104,-502.18302034,0.00035616,3]
[310251969,1704424245114,-500.0,0.00035616,3]
[310251971,1704424245123,-516.05581868,0.00035616,3]
[310251973,1704424245132,-500.0,0.00035616,3]
[310251975,1704424245142,-508.34760261,0.00035616,3]
[310251977,1704424245151,-500.0,0.00035616,3]
[310251979,1704424245160,-504.78411462,0.00035616,3]
[310251981,1704424245170,-500.0,0.00035616,3]
[310251982,1704424245179,-200.01709984,0.00035616,3]
[310251985,1704424245189,-503.56953804,0.00035616,3]
[310251987,1704424245202,-623.75387909,0.00035616,3]
[310251989,1704424245211,-500.0,0.00035616,3]
[310251991,1704424245221,-501.09755774,0.00035616,3]
[310252000,1704424245294,-522.69954474,0.00035616,3]
[310252002,1704424245307,-504.88146215,0.00035616,3]
[310252004,1704424245315,-599.87147991,0.00035616,3]
[310252006,1704424245324,-514.36972069,0.00035616,3]
[310252008,1704424245333,-500.0,0.00035616,3]
[310252010,1704424245342,-502.13858265,0.00035616,3]
[310252012,1704424245351,-501.60475829,0.00035616,3]
[310252014,1704424245361,-504.84759922,0.00035616,3]
[310252016,1704424245370,-294.61770204,0.00035616,3]
[310252018,1704424245379,-500.0,0.00035616,3]
[310252020,1704424245388,-504.23302302,0.00035616,3]
[310252022,1704424245397,-500.0,0.00035616,3]
[310252024,1704424245406,-392.1456895,0.00035616,3]
[310252026,1704424245416,-502.55669992,0.00035616,3]
[310252028,1704424245425,-500.0,0.00035616,3]
[310252030,1704424245434,-525.22779961,0.00035616,3]
[310252032,1704424245444,-552.14620881,0.00035616,3]
[310252034,1704424245453,-504.66806421,0.00035616,3]
[310252036,1704424245463,-506.60226735,0.00035616,3]
[310252038,1704424245472,-500.0,0.00035616,3]
[310252040,1704424245481,-500.0,0.00035616,3]
[310252042,1704424245490,-506.85090374,0.00035616,3]
[310252044,1704424245499,-500.0,0.00035616,3]
[310252046,1704424245509,-500.0,0.00035616,3]
[310252048,1704424245518,-512.42720602,0.00035616,3]
[310252050,1704424245528,-500.0,0.00035616,3]
[310252052,1704424245537,-500.0,0.00035616,3]
[310252054,1704424245547,-500.0,0.00035616,3]
[310252056,1704424245558,-519.2532833,0.00035616,3]
[310252058,1704424245568,-500.0,0.00035616,3]
[310252060,1704424245578,-500.0,0.00035616,3]
[310252062,1704424245587,-760.75,0.00035616,3]
[310252064,1704424245596,-547.67339001,0.00035616,3]
[310252066,1704424245606,-500.0,0.00035616,3]
[310252068,1704424245618,-500.0,0.00035616,3]
[310252070,1704424245628,-500.0,0.00035616,3]
[310252072,1704424245637,-500.0,0.00035616,3]
[310252074,1704424245646,-500.0,0.00035616,3]
[310252076,1704424245655,-510.80525593,0.00035616,3]
[310252078,1704424245664,-500.0,0.00035616,3]
[310252080,1704424245673,-500.0,0.00035616,3]
[310252082,1704424245681,-500.0,0.00035616,3]
[310252084,1704424245690,-500.0,0.00035616,3]
[310252086,1704424245699,-500.0,0.00035616,3]
[310252088,1704424245708,-500.0,0.00035616,3]
[310252090,1704424245717,-500.0,0.00035616,3]
[310252092,1704424245726,-500.0,0.00035616,3]
[310252094,1704424245735,-448.06801912,0.00035616,3]
[310252096,1704424245744,-508.1322916,0.00035616,3]
[310252098,1704424245753,-510.95908936,0.00035616,3]
[310252100,1704424245764,-500.0,0.00035616,3]
[310252102,1704424245773,-500.0,0.00035616,3]
[310252104,1704424245782,-500.0,0.00035616,3]
[310252106,1704424245791,-518.33748871,0.00035616,3]
[310252108,1704424245801,-547.57023189,0.00035616,3]
[310252110,1704424245809,-500.0,0.00035616,3]
[310252111,1704424245818,-583.53,0.00035616,3]
[310252113,1704424245827,-500.0,0.00035616,3]
[310252115,1704424245836,-507.59264621,0.00035616,3]
[310252117,1704424245845,-510.00437117,0.00035616,3]
[310252120,1704424245857,-510.2552643,0.00035616,3]
[310252122,1704424245865,-500.0,0.00035616,3]
[310252124,1704424245874,-500.0,0.00035616,3]
[310252126,1704424245883,-500.0,0.00035616,3]
[310252127,1704424245892,-500.0,0.00035616,3]
[310252129,1704424245901,-505.25247658,0.00035616,3]
[310252132,1704424245911,-481.09223389,0.00035616,3]
[310252134,1704424245923,-504.84084654,0.00035616,3]
[310252136,1704424245932,-500.0,0.00035616,3]
[310252138,1704424245941,-500.0,0.00035616,3]
[310252140,1704424245950,-500.0,0.00035616,3]
[310252142,1704424245959,-500.0,0.00035616,3]
[310252144,1704424245969,-500.0,0.00035616,3]
[310252146,1704424245979,-500.0,0.00035616,3]
[310252148,1704424245988,-500.0,0.00035616,3]
[310252150,1704424245998,-500.0,0.00035616,3]
[310252152,1704424246007,-500.0,0.00035616,3]
[310252154,1704424246017,-511.55845177,0.00035616,2]
[310252156,1704424246026,-669.12,0.00035616,3]
[310252158,1704424246036,-500.0,0.00035616,3]
[310252160,1704424246045,-500.0,0.00035616,3]
[310252162,1704424246056,-500.0,0.00035616,3]
[310252164,1704424246065,-500.0,0.00035616,3]
[310252166,1704424246075,-500.0,0.00035616,3]
[310252168,1704424246084,-595.44638938,0.00035616,3]
[310252170,1704424246093,-500.0,0.00035616,3]
[310252172,1704424246102,-500.0,0.00035616,3]
[310252174,1704424246112,-500.0,0.00035616,3]
[310252176,1704424246123,-500.0,0.00035616,3]
[310252178,1704424246132,-500.0,0.00035616,3]
[310252180,1704424246142,-501.86275709,0.00035616,3]
[310252182,1704424246152,-500.0,0.00035616,3]
[310252184,1704424246162,-500.0,0.00035616,3]
[310252186,1704424246172,-500.0,0.00035616,3]
[310252188,1704424246181,-500.0,0.00035616,3]
[310252190,1704424246191,-503.94345116,0.00035616,3]
[310252193,1704424246201,-500.0,0.00035616,3]
[310252195,1704424246211,-500.0,0.00035616,3]
[310252197,1704424246221,-530.89,0.00035616,3]
[310252199,1704424246230,-500.0,0.00035616,3]
[310252201,1704424246239,-500.0,0.00035616,3]
[310252203,1704424246248,-500.0,0.00035616,3]
[310252205,1704424246257,-502.64338988,0.00035616,3]
[310252206,1704424246266,-500.0,0.00035616,3]
[310252209,1704424246276,-500.0,0.00035616,3]
[310252211,1704424246286,-500.0,0.00035616,3]
[310252213,1704424246295,-505.4943126,0.00035616,3]
[310252214,1704424246309,-514.82418273,0.00035616,3]
[310252217,1704424246319,-500.0,0.00035616,3]
[310252219,1704424246329,-500.0,0.00035616,3]
[310252220,1704424246338,-500.0,0.00035616,3]
[310252222,1704424246347,-500.0,0.00035616,3]
[310252223,1704424246356,-500.0,0.00035616,3]
[310252225,1704424246366,-500.0,0.00035616,3]
[310252227,1704424246375,-500.0,0.00035616,3]
[310252229,1704424246385,-500.0,0.00035616,3]
[310252231,1704424246394,-500.0,0.00035616,3]
[310252233,1704424246404,-223.13230511,0.00035616,3]
[310252235,1704424246413,-500.0,0.00035616,3]
[310252238,1704424246424,-500.0,0.00035616,3]
[310252242,1704424246434,-500.0,0.00035616,3]
[310252245,1704424246445,-500.0,0.00035616,3]
[310252248,1704424246455,-500.0,0.00035616,3]
[310252251,1704424246466,-565.36235888,0.00035616,3]
[310252254,1704424246476,-500.0,0.00035616,3]
[310252257,1704424246486,-500.0,0.00035616,3]
[310252260,1704424246495,-500.0,0.00035616,3]
[310252263,1704424246504,-479.51615732,0.00035616,3]
[310252265,1704424246514,-500.0,0.00035616,3]
[310252267,1704424246523,-500.0,0.00035616,3]
[310252269,1704424246532,-500.0,0.00035616,3]
[310252271,1704424246542,-500.0,0.00035616,3]
[310252273,1704424246557,-500.0,0.00035616,3]
[310252277,1704424246567,-500.0,0.00035616,3]
[310252280,1704424246578,-500.0,0.00035616,3]
[310252282,1704424246588,-500.0,0.00035616,3]
[310252283,1704424246601,-500.0,0.00035616,3]
[310252286,1704424246612,-500.0,0.00035616,3]
[310252288,1704424246622,-500.0,0.00035616,3]
[310252289,1704424246632,-500.0,0.00035616,3]
[310252291,1704424246643,-500.0,0.00035616,3]
[310252294,1704424246653,-500.0,0.00035616,3]
[310252295,1704424246663,-500.0,0.00035616,3]
[310252297,1704424246672,-500.0,0.00035616,3]
[310252299,1704424246682,-500.0,0.00035616,3]
[310252301,1704424246692,-500.0,0.00035616,3]
[310252303,1704424246701,-500.0,0.00035616,3]
[310252306,1704424246711,-500.0,0.00035616,3]
[310252308,1704424246720,-529.64507522,0.00035616,3]
[310252310,1704424246730,-500.0,0.00035616,3]
[310252312,1704424246740,-511.82503719,0.00035616,3]
[310252313,1704424246749,-500.0,0.00035616,3]
[310252315,1704424246758,-500.0,0.00035616,3]
[310252317,1704424246768,-500.0,0.00035616,3]
[310252319,1704424246777,-500.0,0.00035616,3]
[310252321,1704424246787,-500.0,0.00035616,3]
[310252323,1704424246797,-500.0,0.00035616,3]
[310252325,1704424246813,-500.0,0.00035616,3]
[310252327,1704424246822,-500.0,0.00035616,3]
[310252329,1704424246833,-500.0,0.00035616,3]
[310252331,1704424246842,-515.26819254,0.00035616,3]
[310252334,1704424246852,-504.04095406,0.00035616,3]
[310252336,1704424246861,-500.0,0.00035616,3]
[310252338,1704424246871,-500.0,0.00035616,3]
[310252339,1704424246881,-500.0,0.00035616,3]
[310252341,1704424246891,-500.0,0.00035616,3]
[310252344,1704424246901,-500.0,0.00035616,3]
[310252345,1704424246910,-500.0,0.00035616,3]
[310252348,1704424246922,-500.0,0.00035616,3]
[310252349,1704424246932,-500.0,0.00035616,3]
[310252352,1704424246942,-500.0,0.00035616,3]
[310252354,1704424246952,-500.0,0.00035616,3]
[310252355,1704424246962,-502.78003961,0.00035616,3]
[310252357,1704424246972,-500.0,0.00035616,3]
[310252359,1704424246981,-500.0,0.00035616,3]
[310252362,1704424246991,-500.0,0.00035616,3]
[310252363,1704424247001,-500.0,0.00035616,3]
[310252365,1704424247012,-500.0,0.00035616,3]
[310252367,1704424247022,-500.0,0.00035616,3]
[310252370,1704424247032,-500.0,0.00035616,3]
[310252372,1704424247043,-511.85416267,0.00035616,3]
[310252373,1704424247055,-533.1031438,0.00035616,3]
[310252376,1704424247065,-500.0,0.00035616,3]
[310252378,1704424247076,-500.0,0.00035616,3]
[310252380,1704424247086,-500.0,0.00035616,3]
[310252382,1704424247097,-500.0,0.00035616,3]
[310252383,1704424247108,-500.0,0.00035616,3]
[310252385,1704424247118,-500.0,0.00035616,3]
[310252388,1704424247131,-520.79684898,0.00035616,3]
[310252389,1704424247142,-636.55965799,0.00035616,3]
[310252391,1704424247153,-500.0,0.00035616,3]
[310252393,1704424247163,-500.0,0.00035616,3]
[310252396,1704424247176,-500.0,0.00035616,3]
[310252398,1704424247186,-500.0,0.00035616,3]
[310252400,1704424247197,-500.0,0.00035616,3]
[310252402,1704424247207,-504.92857282,0.00035616,3]
[310252404,1704424247217,-528.6979968,0.00035616,3]
[310252406,1704424247228,-502.30793211,0.00035616,3]
[310252408,1704424247239,-504.82547962,0.00035616,3]
[310252410,1704424247250,-500.0,0.00035616,3]
[310252412,1704424247261,-500.0,0.00035616,3]
[310252414,1704424247270,-502.32628139,0.00035616,3]
[310252416,1704424247281,-500.0,0.00035616,3]
[310252418,1704424247292,-500.0,0.00035616,3]
[310252420,1704424247303,-500.0,0.00035616,3]
[310252422,1704424247313,-500.0,0.00035616,3]
[310252424,1704424247324,-500.0,0.00035616,3]
[310252426,1704424247334,-520.68907555,0.00035616,3]
[310252428,1704424247345,-500.0,0.00035616,3]
[310252430,1704424247355,-419.59839891,0.00035616,3]
[310252432,1704424247366,-500.0,0.00035616,3]
[310252434,1704424247377,-500.0,0.00035616,3]
[310252436,1704424247387,-408.53962192,0.00035616,3]
[310252438,1704424247398,-500.0,0.00035616,3]
[310252440,1704424247408,-500.94255657,0.00035616,3]
[310252442,1704424247419,-500.0,0.00035616,3]
[310252444,1704424247430,-500.0,0.00035616,3]
[310252446,1704424247441,-592.23134931,0.00035616,3]
[310252449,1704424247452,-500.0,0.00035616,3]
[310252451,1704424247462,-500.0,0.00035616,3]
[310252453,1704424247472,-500.0,0.00035616,3]
[310252455,1704424247483,-500.0,0.00035616,3]
[310252457,1704424247493,-208.38404724,0.00035616,3]
[310252459,1704424247505,-505.4292663,0.00035616,3]
[310252461,1704424247516,-500.0,0.00035616,3]
[310252463,1704424247527,-500.0,0.00035616,3]
[310252465,1704424247536,-500.0,0.00035616,3]
[310252466,1704424247546,-500.0,0.00035616,3]
[310252469,1704424247559,-500.0,0.00035616,3]
[310252471,1704424247569,-500.0,0.00035616,3]
[310252473,1704424247579,-500.0,0.00035616,3]
[310252475,1704424247591,-500.0,0.00035616,3]
[310252477,1704424247602,-500.0,0.00035616,3]
[310252479,1704424247613,-500.0,0.00035616,3]
[310252481,1704424247624,-500.0,0.00035616,3]
[310252483,1704424247636,-500.0,0.00035616,3]
[310252485,1704424247647,-500.0,0.00035616,3]
[310252487,1704424247657,-500.0,0.00035616,3]
[310252489,1704424247668,-501.86936438,0.00035616,3]
[310252491,1704424247679,-500.0,0.00035616,3]
[310252493,1704424247690,-500.0,0.00035616,3]
[310252495,1704424247701,-500.0,0.00035616,3]
[310252497,1704424247712,-500.0,0.00035616,3]
[310252500,1704424247723,-212.98863904,0.00035616,3]
[310252502,1704424247733,-500.0,0.00035616,3]
[310252504,1704424247743,-500.0,0.00035616,3]
[310252506,1704424247753,-500.0,0.00035616,3]
[310252508,1704424247763,-507.61151478,0.00035616,3]
[310252510,1704424247774,-500.0,0.00035616,3]
[310252512,1704424247784,-504.07691371,0.00035616,3]
[310252514,1704424247795,-500.0,0.00035616,3]
[310252516,1704424247807,-500.0,0.00035616,3]
[310252518,1704424247817,-514.21487676,0.00035616,3]
[310252520,1704424247827,-500.0,0.00035616,3]
[310252522,1704424247837,-500.0,0.00035616,3]
[310252524,1704424247848,-500.0,0.00035616,3]
[310252526,1704424247857,-514.12960181,0.00035616,3]
[310252528,1704424247866,-562.67758385,0.00035616,3]
[310252530,1704424247876,-500.0,0.00035616,3]
[310252532,1704424247887,-500.0,0.00035616,3]
[310252534,1704424247897,-500.0,0.00035616,3]
[310252536,1704424247907,-511.96893216,0.00035616,3]
[310252538,1704424247920,-500.0,0.00035616,3]
[310252540,1704424247932,-496.14998185,0.00035616,3]
[310252542,1704424247942,-500.0,0.00035616,3]
[310252544,1704424247953,-500.0,0.00035616,3]
[310252546,1704424247964,-500.0,0.00035616,3]
[310252548,1704424247974,-500.0,0.00035616,3]
[310252550,1704424247984,-500.0,0.00035616,3]
[310252552,1704424247995,-500.0,0.00035616,3]
[310252554,1704424248005,-587.60299764,0.00035616,3]
[310252556,1704424248015,-500.0,0.00035616,3]
[310252558,1704424248026,-500.0,0.00035616,3]
[310252560,1704424248037,-500.0,0.00035616,3]
[310252562,1704424248048,-500.0,0.00035616,3]
[310252564,1704424248061,-500.0,0.00035616,3]
[310252566,1704424248071,-500.0,0.00035616,3]
[310252568,1704424248081,-500.0,0.00035616,3]
[310252570,1704424248091,-500.0,0.00035616,3]
[310252573,1704424248102,-500.0,0.00035616,3]
[310252575,1704424248111,-500.0,0.00035616,3]
[310252577,1704424248122,-158.18571975,0.00035616,3]
[310252579,1704424248132,-500.0,0.00035616,3]
[310252581,1704424248142,-500.0,0.00035616,3]
[310252583,1704424248152,-500.0,0.00035616,3]
[310252585,1704424248165,-504.66359891,0.00035616,3]
[310252587,1704424248175,-500.0,0.00035616,3]
[310252589,1704424248185,-500.0,0.00035616,3]
[310252591,1704424248196,-500.0,0.00035616,3]
[310252593,1704424248206,-500.0,0.00035616,3]